bitfinex-derivatives/quotes_BTCF0:USTF0_20241221
["timestamp","ask_amount","ask_price","bid_price","bid_amount"]
[1734786468157,0.051317,97468.0,97455.0,0.051323]
[1734786468451,0.09063855,97469.0,97455.0,0.051323]
[1734786468846,0.05642,97456.0,97455.0,0.051323]
[1734786469457,0.05642,97456.0,97455.0,0.2962589]
[1734786470047,0.05642,97456.0,97455.0,0.3116589]
[1734786470657,0.05642,97456.0,97455.0,0.066723]
[1734786475149,0.05642,97456.0,97455.0,0.788323]
[1734786475456,0.05642,97456.0,97455.0,0.90269334]
[1734786475656,0.09063855,97483.0,97482.0,0.051309]
[1734786476854,0.09163855,97483.0,97482.0,0.051309]
[1734786477649,0.001,97483.0,97482.0,0.051309]
[1734786478143,0.008,97483.0,97482.0,0.052309]
[1734786480854,0.059308,97483.0,97482.0,0.052309]
[1734786481053,0.008,97483.0,97482.0,0.052309]
[1734786481661,0.059308,97483.0,97482.0,0.052309]
[1734786481860,0.059308,97483.0,97482.0,0.001]
[1734786482060,0.059308,97483.0,97480.0,0.3608]
[1734786482061,0.05131,97481.0,97480.0,0.3608]
[1734786482663,0.051313,97475.0,97474.0,0.3608]
[1734786483666,0.051313,97475.0,97474.0,0.412113]
[1734786483964,0.05131,97480.0,97479.0,0.05131]
[1734786484867,0.051313,97476.0,97474.0,0.412113]
[1734786485054,0.0912,97475.0,97474.0,0.412113]
[1734786485361,0.0912,97475.0,97462.0,0.3608]
[1734786485362,0.0922,97475.0,97462.0,0.3608]
[1734786485558,0.051316,97469.0,97468.0,0.051316]
[1734786486360,0.051319,97464.0,97462.0,0.5966183]
[1734786486559,0.051319,97464.0,97462.0,0.5960983]
[1734786486961,0.051449,97464.0,97462.0,0.5960983]
[1734786487161,0.00013,97464.0,97462.0,0.5960983]
[1734786487364,0.00013,97464.0,97462.0,0.412119]
[1734786487869,0.00013,97464.0,97463.0,0.11895306]
[1734786488068,0.00013,97464.0,97463.0,0.21545306]
[1734786488757,0.00113,97464.0,97463.0,0.0965]
[1734786488957,0.00113,97464.0,97463.0,0.001]
[1734786489660,0.00013,97464.0,97463.0,0.001]
[1734786489860,0.00013,97464.0,97463.0,0.003]
[1734786490053,0.00013,97464.0,97463.0,0.0184]
[1734786491367,0.00013,97464.0,97463.0,0.0164]
[1734786492172,0.00013,97464.0,97463.0,0.0174]
[1734786492366,0.00013,97464.0,97463.0,0.0184]
[1734786492882,0.00013,97464.0,97463.0,0.0174]
[1734786493062,0.00013,97464.0,97463.0,0.0184]
[1734786494865,0.00013,97464.0,97463.0,0.069719]
[1734786497164,0.09173,97464.0,97463.0,0.003]
[1734786497368,0.27683,97464.0,97463.0,0.001]
[1734786497584,0.09173,97464.0,97463.0,0.002]
[1734786498071,0.00213,97464.0,97463.0,0.001]
[1734786498672,0.00213,97464.0,97463.0,0.0902]
[1734786498865,0.00313,97464.0,97463.0,0.0892]
[1734786499060,0.00313,97464.0,97461.0,0.3608]
[1734786499261,0.051319,97463.0,97461.0,0.3608]
[1734786499669,0.00313,97464.0,97461.0,0.3608]
[1734786499966,0.00213,97464.0,97463.0,0.052319]
[1734786500474,0.00013,97464.0,97463.0,0.052319]
[1734786500968,0.00113,97464.0,97463.0,0.052319]
[1734786501473,0.00013,97464.0,97463.0,0.053319]
[1734786502167,0.00013,97464.0,97463.0,0.052319]
[1734786502769,0.00013,97464.0,97463.0,0.06264028]
[1734786502969,0.00013,97464.0,97463.0,0.06364028]
[1734786504373,0.00013,97464.0,97463.0,0.06464028]
[1734786504675,0.00013,97464.0,97463.0,0.06364028]
[1734786504874,0.00013,97464.0,97463.0,0.37083211]
[1734786505963,0.00013,97464.0,97463.0,0.36051083]
[1734786506162,0.00013,97464.0,97463.0,0.22260947]
[1734786506365,0.09573,97464.0,97463.0,0.22260947]
[1734786506871,0.19043,97464.0,97463.0,0.22260947]
[1734786507074,0.28333,97464.0,97463.0,0.22260947]
[1734786507272,0.28533,97464.0,97463.0,0.07340947]
[1734786507473,0.28533,97464.0,97457.0,0.18440281]
[1734786507771,0.28333,97464.0,97457.0,0.18440281]
[1734786507966,0.051322,97458.0,97457.0,0.18440281]
[1734786508678,0.412122,97458.0,97457.0,0.18440281]
[1734786508867,0.051324,97453.0,97452.0,0.24587041]
[1734786509067,0.051328,97445.0,97437.0,0.3668231]
[1734786509269,0.412132,97438.0,97437.0,0.30730248]
[1734786509680,0.712132,97438.0,97437.0,0.30730248]
[1734786510573,0.42249975,97438.0,97437.0,0.31230248]
[1734786510769,0.4733383,97438.0,97437.0,0.005]
[1734786511077,0.051335,97433.0,97413.0,0.051345]
[1734786512066,0.051344,97416.0,97406.0,0.412149]
[1734786512269,0.10115317,97423.0,97406.0,0.412669]
[1734786512472,0.051346,97413.0,97406.0,0.412669]
[1734786513172,8.487e-05,97412.0,97411.0,0.3608]
[1734786514581,0.00108487,97412.0,97411.0,0.3608]
[1734786514967,0.001,97416.0,97411.0,0.3608]
[1734786514968,0.001,97416.0,97415.0,0.051344]
[1734786515281,0.09054784,97425.0,97424.0,0.05134]
[1734786515784,0.12073045,97431.0,97430.0,0.051336]
[1734786515971,0.12073045,97431.0,97430.0,0.412136]
[1734786516368,0.12073045,97455.0,97432.0,0.051335]
[1734786516576,0.12073045,97455.0,97445.0,0.051328]
[1734786516881,0.12073045,97455.0,97448.0,0.051327]
[1734786517185,0.12073045,97455.0,97454.0,0.3608]
[1734786517380,0.12073045,97455.0,97452.0,0.051324]
[1734786517681,0.01020709,97463.0,97452.0,0.051324]
[1734786517866,0.0954,97468.0,97452.0,0.051324]
[1734786518071,0.009,97455.0,97452.0,0.051324]
[1734786518479,0.051326,97451.0,97448.0,0.001]
[1734786519380,0.051326,97451.0,97447.0,0.051327]
[1734786519970,0.051326,97451.0,97448.0,0.051327]
[1734786520171,0.060326,97451.0,97448.0,0.052327]
[1734786520866,0.060326,97451.0,97448.0,0.051327]
[1734786521783,0.061326,97451.0,97448.0,0.051327]
[1734786522384,0.051326,97451.0,97448.0,0.051327]
[1734786522582,0.051326,97451.0,97444.0,0.3608]
[1734786522583,0.002,97451.0,97444.0,0.3608]
[1734786522777,0.051328,97447.0,97444.0,0.3608]
[1734786522976,0.002,97451.0,97434.0,0.0904]
[1734786523176,0.05133,97443.0,97429.0,0.051337]
[1734786523377,0.051329,97445.0,97438.0,0.051332]
[1734786523579,0.051329,97445.0,97442.0,0.05133]
[1734786523778,0.003,97451.0,97435.0,0.051334]
[1734786523983,0.051331,97441.0,97435.0,0.051334]
[1734786524180,0.051333,97437.0,97435.0,0.051334]
[1734786524372,0.05134,97423.0,97421.0,0.3608]
[1734786524977,0.3608,97430.0,97411.0,0.3608]
[1734786525182,0.051344,97416.0,97411.0,0.3608]
[1734786526479,0.051346,97412.0,97411.0,0.3658]
[1734786527189,0.051346,97412.0,97411.0,0.3608]
[1734786527781,0.051351,97403.0,97402.0,0.3608]
[1734786528192,0.051352,97401.0,97400.0,0.2]
[1734786528481,0.10115317,97412.0,97400.0,0.251352]
[1734786528678,0.05135,97405.0,97400.0,0.251352]
[1734786529077,0.11133137,97412.0,97400.0,0.251352]
[1734786529490,0.05135,97405.0,97400.0,0.251352]
[1734786530089,0.0515,97405.0,97401.0,0.051351]
[1734786530281,0.00015,97405.0,97403.0,0.41215]
[1734786530785,0.412142,97420.0,97414.0,0.051345]
[1734786530975,0.051342,97420.0,97414.0,0.051345]
[1734786531181,0.00821,97419.0,97414.0,0.051345]
[1734786531685,0.00821,97419.0,97417.0,0.051343]
[1734786531888,0.00821,97419.0,97418.0,0.0908]
[1734786532990,0.00921,97419.0,97418.0,0.0908]
[1734786533187,0.01221,97419.0,97418.0,0.0908]
[1734786535693,0.3608,97430.0,97418.0,0.0908]
[1734786535996,0.3608,97430.0,97421.0,0.3608]
[1734786535997,0.051339,97425.0,97421.0,0.3608]
[1734786536388,0.05134,97424.0,97421.0,0.3608]
[1734786536592,0.6608,97430.0,97402.0,0.3608]
[1734786536888,0.10115317,97420.0,97402.0,0.3608]
[1734786537084,0.3608,97421.0,97418.0,0.001]
[1734786537391,0.051343,97419.0,97418.0,0.001]
[1734786537788,0.051351,97403.0,97402.0,0.3618]
[1734786538184,0.051347,97410.0,97402.0,0.3618]
[1734786538380,0.37506404,97421.0,97406.0,0.051349]
[1734786538580,0.051348,97408.0,97406.0,0.051349]
[1734786539595,0.051351,97403.0,97402.0,0.3608]
[1734786539997,0.051351,97403.0,97402.0,0.3648]
[1734786540390,0.051351,97403.0,97402.0,0.3608]
[1734786540692,0.051351,97403.0,97400.0,0.2]
[1734786540693,0.412148,97407.0,97406.0,0.001]
[1734786541399,0.051351,97403.0,97402.0,0.006]
[1734786541787,0.3,97403.0,97383.0,0.0006]
[1734786541986,0.051366,97374.0,97373.0,0.30704098]
[1734786542185,0.051366,97374.0,97373.0,0.30652098]
[1734786542686,0.051368,97370.0,97367.0,0.00154037]
[1734786544108,0.055368,97370.0,97367.0,0.00154037]
[1734786544889,0.056368,97370.0,97367.0,0.00154037]
[1734786545389,0.005,97370.0,97367.0,0.00154037]
[1734786545585,0.005,97370.0,97369.0,0.41224767]
[1734786545891,0.051357,97392.0,97386.0,0.051359]
[1734786546395,0.36160001,97400.0,97391.0,0.051357]
[1734786546596,0.36160001,97400.0,97392.0,0.3608]
[1734786546997,0.3608,97400.0,97397.0,0.051354]
[1734786547790,0.3608,97400.0,97392.0,0.3608]
[1734786548194,0.051355,97396.0,97392.0,0.3608]
[1734786548699,0.3608,97400.0,97395.0,0.051355]
[1734786548890,0.3608,97400.0,97396.0,0.051354]
[1734786549284,0.3608,97400.0,97392.0,0.3608]
[1734786549589,0.051355,97396.0,97392.0,0.3618]
[1734786550189,0.051355,97396.0,97392.0,0.3608]
[1734786550784,0.051356,97394.0,97392.0,0.3608]
[1734786551597,0.002,97396.0,97392.0,0.3608]
[1734786551793,0.002,97396.0,97394.0,0.051355]
[1734786552794,0.051355,97395.0,97392.0,0.3618]
[1734786553198,0.3608,97412.0,97392.0,0.3618]
[1734786553402,0.3608,97412.0,97395.0,0.051355]
[1734786553589,0.051352,97402.0,97395.0,0.051355]
[1734786553794,0.051352,97402.0,97394.0,0.004]
[1734786553795,0.10115317,97410.0,97394.0,0.004]
[1734786553992,0.051356,97393.0,97392.0,0.3618]
[1734786554397,0.051356,97393.0,97392.0,0.3608]
[1734786554800,0.051356,97393.0,97389.0,0.051358]
[1734786555204,0.051357,97392.0,97389.0,0.051358]
[1734786555389,0.001,97395.0,97383.0,0.3608]
[1734786555596,0.051359,97387.0,97383.0,0.3608]
[1734786556093,0.051361,97384.0,97383.0,0.3608]
[1734786558507,0.12073045,97400.0,97383.0,0.47964008]
[1734786558701,0.12073045,97400.0,97399.0,0.412153]
[1734786559204,0.12894045,97400.0,97399.0,0.772953]
[1734786559792,0.13294045,97400.0,97399.0,0.772953]
[1734786560295,0.12894045,97400.0,97399.0,0.772953]
[1734786560498,0.00821,97400.0,97399.0,0.772953]
[1734786560902,0.05134,97424.0,97399.0,0.83033906]
[1734786561101,0.05134,97424.0,97422.0,0.05134]
[1734786561397,0.05134,97424.0,97423.0,0.0902]
[1734786562707,0.05234,97424.0,97423.0,0.0902]
[1734786563008,0.05734,97424.0,97423.0,0.0902]
[1734786566002,0.006,97424.0,97423.0,0.0902]
[1734786575824,0.006,97424.0,97422.0,0.05134]
[1734786575825,0.05134,97423.0,97418.0,0.3608]
[1734786576031,0.051342,97419.0,97418.0,0.3608]
[1734786576929,0.001,97423.0,97422.0,0.05134]
[1734786577121,0.00139,97423.0,97422.0,0.05134]
[1734786577723,0.00039,97423.0,97422.0,0.05134]
[1734786578527,0.00539,97423.0,97422.0,0.05134]
[1734786579730,0.00639,97423.0,97422.0,0.05134]
[1734786580837,0.01665,97423.0,97422.0,0.05134]
[1734786582527,0.01665,97423.0,97422.0,0.41214]
[1734786587231,0.051345,97413.0,97412.0,0.24499221]
[1734786588238,0.051345,97413.0,97404.0,0.3608]
[1734786588439,0.051349,97406.0,97404.0,0.3608]
[1734786589729,0.17207945,97406.0,97404.0,0.3608]
[1734786590835,0.055349,97406.0,97404.0,0.3608]
[1734786591229,0.056349,97406.0,97404.0,0.3608]
[1734786591630,0.06888085,97406.0,97404.0,0.3608]
[1734786593431,0.058349,97406.0,97404.0,0.3608]
[1734786593636,0.052349,97406.0,97404.0,0.3608]
[1734786593837,0.055349,97406.0,97404.0,0.3608]
[1734786594034,0.056349,97406.0,97404.0,0.3608]
[1734786594232,0.052349,97406.0,97404.0,0.3608]
[1734786594434,0.056349,97406.0,97404.0,0.3608]
[1734786594634,0.055349,97406.0,97404.0,0.3608]
[1734786594833,0.056349,97406.0,97404.0,0.3608]
[1734786595443,0.055349,97406.0,97404.0,0.41215]
[1734786595639,0.004,97406.0,97404.0,0.41215]
[1734786595839,0.004,97406.0,97405.0,0.0884]
[1734786596532,0.01221,97406.0,97405.0,0.0884]
[1734786596935,0.12073045,97415.0,97414.0,0.051345]
[1734786597133,0.12073045,97415.0,97414.0,0.412145]
[1734786597344,0.051342,97419.0,97417.0,0.051343]
[1734786598742,0.054342,97419.0,97417.0,0.051343]
[1734786600031,0.054342,97419.0,97418.0,0.0881]
[1734786600643,0.051348,97409.0,97408.0,0.051348]
[1734786600843,0.054342,97419.0,97415.0,0.051344]
[1734786601044,0.051343,97417.0,97415.0,0.051344]
[1734786601344,0.003,97419.0,97407.0,0.24499221]
[1734786601345,0.002,97419.0,97407.0,0.24499221]
[1734786601545,0.051347,97411.0,97409.0,0.051347]
[1734786602942,0.051344,97417.0,97414.0,0.051345]
[1734786603137,0.051344,97415.0,97414.0,0.412145]
[1734786603752,0.051344,97415.0,97414.0,0.3608]
[1734786604049,0.051348,97410.0,97409.0,0.051347]
[1734786604552,0.051348,97410.0,97404.0,0.3608]
[1734786604553,0.051349,97406.0,97404.0,0.3608]
[1734786605645,0.051349,97406.0,97398.0,0.24499221]
[1734786605843,0.051353,97399.0,97398.0,0.24499221]
[1734786606246,0.051353,97399.0,97389.0,0.0154]
[1734786606247,0.051357,97390.0,97389.0,0.0154]
[1734786607757,0.051358,97388.0,97387.0,0.091]
[1734786608161,0.051358,97388.0,97374.0,0.01044043]
[1734786608454,0.051363,97379.0,97373.0,0.30704098]
[1734786608650,0.051363,97379.0,97373.0,0.30652098]
[1734786609253,0.051363,97379.0,97378.0,0.009]
[1734786609452,0.06144842,97379.0,97378.0,0.009]
[1734786609751,0.051368,97370.0,97364.0,0.24499221]
[1734786610347,0.051371,97365.0,97364.0,0.00940078]
[1734786610552,0.051371,97365.0,97358.0,0.30652098]
[1734786610553,0.051374,97359.0,97358.0,0.30652098]
[1734786611150,0.051371,97365.0,97343.0,0.051382]
[1734786611151,0.05138,97348.0,97343.0,0.051382]
[1734786611846,0.05138,97348.0,97342.0,0.3608]
[1734786611847,0.10115317,97353.0,97342.0,0.3608]
[1734786612050,0.051369,97368.0,97352.0,0.3608]
[1734786612250,0.051369,97368.0,97367.0,0.3608]
[1734786612451,7.867e-05,97370.0,97363.0,0.3608]
[1734786612758,0.12073045,97369.0,97363.0,0.3608]
[1734786613254,0.001,97368.0,97367.0,0.051369]
[1734786613656,0.05137,97366.0,97364.0,0.091]
[1734786614856,0.01042785,97368.0,97353.0,0.091]
[1734786615056,0.10123184,97370.0,97356.0,0.051375]
[1734786615252,0.051372,97362.0,97356.0,0.051375]
[1734786615455,0.051375,97358.0,97353.0,0.091]
[1734786615664,0.051371,97365.0,97364.0,0.002]
[1734786616263,0.051376,97354.0,97353.0,0.091]
[1734786616857,0.051376,97354.0,97353.0,0.092]
[1734786617057,0.051376,97354.0,97353.0,0.001]
[1734786617549,0.051379,97349.0,97344.0,0.051381]
[1734786617859,0.05138,97348.0,97344.0,0.051381]
[1734786618263,0.05138,97348.0,97343.0,0.0888]
[1734786618264,0.051381,97345.0,97343.0,0.0888]
[1734786618960,0.10115317,97354.0,97343.0,0.0888]
[1734786619262,0.001,97348.0,97347.0,0.05138]
[1734786619463,0.001,97348.0,97347.0,0.41218]
[1734786619649,0.051372,97363.0,97357.0,0.051375]
[1734786619852,0.051372,97363.0,97361.0,0.3608]
[1734786620652,0.01047358,97370.0,97361.0,0.3608]
[1734786620864,7.867e-05,97370.0,97369.0,0.3608]
[1734786622968,7.867e-05,97370.0,97369.0,0.413169]
[1734786624964,7.867e-05,97370.0,97369.0,0.3618]
[1734786627161,7.867e-05,97370.0,97369.0,0.413169]
[1734786628962,7.867e-05,97370.0,97369.0,0.414169]
[1734786629361,7.867e-05,97370.0,97369.0,0.415169]
[1734786629970,0.01034867,97370.0,97369.0,0.415169]
[1734786630271,0.01034867,97370.0,97369.0,0.416169]
[1734786630566,0.06171667,97370.0,97369.0,0.3648]
[1734786631561,0.06171667,97370.0,97369.0,0.3628]
[1734786631870,0.06171667,97370.0,97369.0,0.3608]
[1734786632067,0.06171667,97370.0,97369.0,0.3618]
[1734786633074,0.06171667,97370.0,97369.0,0.001]
[1734786633279,0.051372,97362.0,97361.0,0.051372]
[1734786633575,0.051373,97360.0,97359.0,0.3608]
[1734786633773,0.059583,97360.0,97359.0,0.3608]
[1734786633966,0.00821,97360.0,97355.0,0.051376]
[1734786634167,0.051375,97357.0,97355.0,0.051376]
[1734786635263,0.00821,97360.0,97359.0,0.051374]
[1734786636562,0.051375,97357.0,97355.0,0.009]
[1734786636760,0.051375,97357.0,97355.0,0.006]
[1734786637170,0.051375,97357.0,97355.0,0.057376]
[1734786637383,0.051375,97357.0,97355.0,0.051376]
[1734786637968,0.051375,97357.0,97355.0,0.412176]
[1734786638169,0.001,97357.0,97355.0,0.418176]
[1734786638382,0.001,97357.0,97355.0,0.421176]
[1734786638676,0.02567,97356.0,97355.0,0.421176]
[1734786639671,0.02567,97356.0,97355.0,0.418176]
[1734786639873,0.02567,97356.0,97355.0,0.421176]
[1734786640173,0.02567,97356.0,97355.0,0.3698]
[1734786640676,0.02667,97356.0,97355.0,0.3698]
[1734786641371,0.51818325,97356.0,97355.0,0.009]
[1734786641768,0.51826192,97356.0,97355.0,0.009]
[1734786642378,0.50827912,97356.0,97355.0,0.009]
[1734786642578,0.051382,97343.0,97342.0,0.18362989]
[1734786642970,0.3608,97348.0,97330.0,0.051389]
[1734786642971,0.051387,97334.0,97330.0,0.051389]
[1734786643170,0.051387,97334.0,97329.0,0.18362989]
[1734786644070,0.051387,97334.0,97328.0,0.0935]
[1734786644071,7.459e-05,97334.0,97328.0,0.0935]
[1734786644271,0.05139,97329.0,97328.0,0.0935]
[1734786644773,0.00107459,97334.0,97326.0,0.18362989]
[1734786644774,0.051391,97327.0,97326.0,0.18362989]
[1734786645778,0.051391,97327.0,97325.0,0.051391]
[1734786646170,0.051391,97327.0,97326.0,0.005]
[1734786646876,0.052391,97327.0,97326.0,0.008]
[1734786648183,0.052391,97327.0,97326.0,0.003]
[1734786648485,0.14327134,97327.0,97326.0,0.003]
[1734786648990,0.14335001,97327.0,97326.0,0.003]
[1734786649172,0.051398,97314.0,97313.0,0.3608]
[1734786650579,0.059618,97314.0,97313.0,0.3648]
[1734786651086,0.059618,97314.0,97313.0,0.3668]
[1734786653678,0.00822,97314.0,97313.0,0.3668]
[1734786654177,0.09067543,97323.0,97313.0,0.37711031]
[1734786654376,0.09067543,97323.0,97322.0,0.412193]
[1734786655083,0.01024234,97330.0,97322.0,0.3608]
[1734786655384,0.01024234,97330.0,97326.0,0.051391]
[1734786656778,0.051391,97328.0,97326.0,0.051391]
[1734786657870,0.05146967,97327.0,97326.0,0.001]
[1734786658075,0.05146967,97327.0,97326.0,0.003]
[1734786660589,0.1421451,97327.0,97326.0,0.003]
[1734786661292,0.1421451,97327.0,97326.0,0.0899]
[1734786661293,0.0907541,97327.0,97326.0,0.0899]
[1734786662489,7.867e-05,97327.0,97326.0,0.0899]
[1734786664787,6.7e-07,97327.0,97326.0,0.20156374]
[1734786664994,0.09067543,97345.0,97326.0,0.20156374]
[1734786665189,0.09067543,97345.0,97344.0,0.412182]
[1734786665389,0.09067543,97348.0,97347.0,0.05138]
[1734786665891,0.12090057,97354.0,97353.0,0.051377]
[1734786666089,0.12090057,97354.0,97353.0,0.412177]
[1734786666487,0.12108314,97371.0,97370.0,0.051368]
[1734786666681,0.12108314,97371.0,97370.0,0.3608]
[1734786667089,0.05137,97366.0,97358.0,0.051374]
[1734786667286,0.05137,97366.0,97360.0,0.051373]
[1734786667589,0.05137,97366.0,97363.0,0.051371]
[1734786667790,0.12708314,97371.0,97362.0,0.3608]
[1734786667986,0.057368,97371.0,97366.0,0.05137]
[1734786668185,0.051368,97371.0,97366.0,0.05137]
[1734786668490,0.051367,97372.0,97366.0,0.05137]
[1734786668697,0.051368,97371.0,97366.0,0.05137]
[1734786668888,0.0855,97377.0,97362.0,0.3608]
[1734786669193,0.051372,97363.0,97362.0,0.3608]
[1734786669792,0.051368,97370.0,97362.0,0.412172]
[1734786669985,0.002,97371.0,97362.0,0.3608]
[1734786670192,0.051371,97365.0,97362.0,0.3608]
[1734786670397,0.008,97371.0,97366.0,0.001]
[1734786670591,0.05137,97367.0,97366.0,0.001]
[1734786670785,0.05137,97367.0,97362.0,0.3608]
[1734786670990,0.05137,97367.0,97362.0,0.3618]
[1734786671402,0.051371,97365.0,97362.0,0.3608]
[1734786672093,0.051372,97364.0,97362.0,0.3608]
[1734786673299,0.004,97367.0,97362.0,0.412172]
[1734786673805,0.00821,97366.0,97365.0,0.051371]
[1734786674591,0.00821,97366.0,97362.0,0.3608]
[1734786674789,0.051371,97364.0,97362.0,0.3608]
[1734786674999,0.00921,97366.0,97362.0,0.3608]
[1734786675000,0.00921,97366.0,97365.0,0.051371]
[1734786675604,0.00921,97366.0,97362.0,0.3608]
[1734786675792,0.051371,97365.0,97362.0,0.3608]
[1734786676302,0.02567,97364.0,97362.0,0.3608]
[1734786676909,0.00821,97363.0,97362.0,0.3608]
[1734786677505,0.051376,97355.0,97354.0,0.0919]
[1734786677699,0.051381,97347.0,97345.0,0.051381]
[1734786678001,0.01027,97356.0,97342.0,0.45482]
[1734786678191,0.01027,97356.0,97342.0,0.4543]
[1734786678391,0.051376,97355.0,97342.0,0.4543]
[1734786678602,0.051376,97355.0,97354.0,0.001]
[1734786679396,0.052376,97355.0,97342.0,0.4543]
[1734786679603,0.052376,97355.0,97342.0,0.3608]
[1734786679604,0.051382,97343.0,97342.0,0.3608]
[1734786681306,0.051382,97343.0,97342.0,0.3618]
[1734786681711,0.051382,97343.0,97342.0,0.3628]
[1734786683394,0.051379,97349.0,97345.0,0.051381]
[1734786683605,0.05138,97347.0,97345.0,0.051381]
[1734786683804,0.051382,97344.0,97342.0,0.3628]
[1734786684203,0.051379,97351.0,97349.0,0.051379]
[1734786684710,0.051376,97355.0,97351.0,0.051378]
[1734786685104,0.051377,97354.0,97351.0,0.051378]
[1734786685403,0.02042142,97356.0,97344.0,0.051381]
[1734786685603,0.051381,97346.0,97344.0,0.051381]
[1734786687103,0.051378,97352.0,97348.0,0.051379]
[1734786687510,0.10137067,97354.0,97348.0,0.051379]
[1734786688005,0.051376,97355.0,97354.0,0.051376]
[1734786688314,0.02242142,97356.0,97342.0,0.3608]
[1734786688508,0.054378,97352.0,97350.0,0.051378]
[1734786688710,0.004,97352.0,97350.0,0.412178]
[1734786690120,0.055378,97352.0,97350.0,0.412178]
[1734786690521,0.052378,97352.0,97350.0,0.412178]
[1734786691121,0.051378,97352.0,97350.0,0.412178]
[1734786691321,0.054378,97352.0,97350.0,0.412178]
[1734786692018,0.003,97352.0,97350.0,0.412178]
[1734786692224,0.003,97352.0,97351.0,0.01544]
[1734786693522,0.01027,97356.0,97351.0,0.01544]
[1734786693821,0.15167845,97371.0,97355.0,0.412176]
[1734786694127,0.15167845,97371.0,97370.0,0.051368]
[1734786694328,0.15167845,97371.0,97370.0,0.412168]
[1734786694928,0.15167845,97380.0,97378.0,0.051364]
[1734786695129,0.15167845,97380.0,97379.0,0.3608]
[1734786695726,0.15167845,97380.0,97379.0,0.4534]
[1734786696635,0.10137067,97390.0,97379.0,0.3608]
[1734786696832,0.051363,97381.0,97379.0,0.3608]
[1734786697729,0.051363,97381.0,97379.0,0.3628]
[1734786698132,0.051363,97381.0,97379.0,0.002]
[1734786698330,0.051367,97371.0,97370.0,0.3608]
[1734786699630,0.00821,97372.0,97371.0,0.051367]
[1734786701532,0.00821,97372.0,97371.0,0.052367]
[1734786701834,0.00821,97372.0,97371.0,0.054367]
[1734786703342,0.00921,97372.0,97371.0,0.052367]
[1734786704040,0.00921,97372.0,97371.0,0.051367]
[1734786704233,0.00921,97372.0,97371.0,0.052367]
[1734786704638,0.00821,97372.0,97371.0,0.055367]
[1734786705635,0.00821,97372.0,97371.0,0.056367]
[1734786706241,0.00821,97372.0,97371.0,0.058367]
[1734786706739,0.06162046,97392.0,97390.0,0.051357]
[1734786706941,0.051357,97392.0,97390.0,0.051357]
[1734786707943,0.057357,97392.0,97390.0,0.051357]
[1734786708145,0.006,97392.0,97390.0,0.051357]
[1734786708339,0.00821,97391.0,97390.0,0.051357]
[1734786709542,0.00921,97391.0,97390.0,0.051357]
[1734786709945,0.00921,97391.0,97390.0,0.066797]
[1734786710147,0.01121,97391.0,97390.0,0.066797]
[1734786712949,0.0895,97425.0,97419.0,0.051342]
[1734786713838,0.051335,97432.0,97424.0,0.41214]
[1734786714038,0.006,97425.0,97424.0,0.41214]
[1734786714239,0.04066,97425.0,97424.0,0.41214]
[1734786715446,0.03466,97425.0,97424.0,0.41214]
[1734786716044,0.03466,97425.0,97424.0,0.41314]
[1734786716537,0.03866,97425.0,97424.0,0.41314]
[1734786717248,0.03766,97425.0,97424.0,0.41314]
[1734786717746,0.03566,97425.0,97424.0,0.41314]
[1734786723450,0.15167845,97462.0,97435.0,0.051333]
[1734786723640,0.15167845,97462.0,97461.0,0.3608]
[1734786725251,0.051318,97465.0,97461.0,0.41212]
[1734786725645,0.0824,97468.0,97463.0,0.051319]
[1734786725845,0.0824,97468.0,97464.0,0.051318]
[1734786726249,0.0824,97468.0,97461.0,0.3608]
[1734786726452,0.006,97465.0,97461.0,0.3618]
[1734786726762,0.006,97465.0,97464.0,0.051318]
[1734786727148,0.006,97465.0,97464.0,0.066718]
[1734786727749,0.006,97468.0,97467.0,0.051317]
[1734786728148,0.006,97468.0,97464.0,0.001]
[1734786728457,0.051318,97465.0,97464.0,0.001]
[1734786728654,0.0823,97467.0,97461.0,0.3608]
[1734786728848,0.4431,97467.0,97452.0,0.3608]
[1734786729043,0.3608,97459.0,97440.0,0.00153926]
[1734786729264,0.051327,97448.0,97440.0,0.00153926]
[1734786729560,0.051327,97448.0,97440.0,0.05287026]
[1734786729748,0.051327,97448.0,97444.0,0.051329]
[1734786729942,0.051327,97448.0,97440.0,0.00153926]
[1734786730350,0.051323,97456.0,97440.0,0.00253926]
[1734786730546,0.0859,97458.0,97440.0,0.00253926]
[1734786730751,0.0859,97458.0,97448.0,0.051327]
[1734786731145,0.0859,97458.0,97454.0,0.051323]
[1734786732253,0.003,97456.0,97454.0,0.051323]
[1734786732752,0.0082,97456.0,97454.0,0.051323]
[1734786732954,0.0082,97456.0,97455.0,0.3608]
[1734786733551,0.0112,97456.0,97455.0,0.3608]
[1734786733949,0.0122,97456.0,97455.0,0.3608]
[1734786735063,0.051323,97455.0,97449.0,0.0861]
[1734786735562,0.051324,97454.0,97448.0,0.051326]
[1734786735864,0.0082,97454.0,97450.0,0.051325]
[1734786736260,0.051324,97453.0,97447.0,0.3608]
[1734786736654,0.051324,97453.0,97447.0,0.412127]
[1734786736871,0.051325,97451.0,97447.0,0.412127]
[1734786737366,0.0092,97454.0,97447.0,0.3608]
[1734786737557,0.002,97453.0,97447.0,0.3608]
[1734786737757,0.002,97453.0,97451.0,0.051325]
[1734786738860,0.0082,97454.0,97451.0,0.051325]
[1734786739068,0.051325,97452.0,97447.0,0.3608]
[1734786739364,0.02565,97451.0,97448.0,0.051327]
[1734786740958,0.02565,97451.0,97450.0,0.051326]
[1734786741750,0.02665,97451.0,97450.0,0.051326]